[Event "*** Titled Tuesday Blitz"]
[Site "Chess.com"]
[Date "2020.04.14"]
[Round "4"]
[White "MarcoCorvi"]
[Black "mathapples"]
[Result "0-1"]
[WhiteElo "2140"]
[BlackElo "2337"]
[TimeControl "180+1"]
[EndTime "10:39:08 PDT"]
[Termination "mathapples won by resignation"]

1. e4 {[%clk 0:03:00.9]} 1... c6 {[%clk 0:02:59.7]} 2. d4 {[%clk 0:02:58.9]}
2... d5 {[%clk 0:02:59.7]} 3. Nd2 {[%clk 0:02:58.3]} 3... dxe4 {[%clk
0:02:59.5]} 4. Nxe4 {[%clk 0:02:59.2]} 4... Nd7 {[%clk 0:02:59.8]} 5. Nf3 {[%clk
0:02:55.4]} 5... Ngf6 {[%clk 0:02:59.6]} 6. Nxf6+ {[%clk 0:02:52.3]} 6... Nxf6
{[%clk 0:02:59.2]} 7. Bd3 {[%clk 0:02:51.6]} 7... Bg4 {[%clk 0:02:58.9]} 8. c3
{[%clk 0:02:49.8]} 8... e6 {[%clk 0:02:58.9]} 9. h3 {[%clk 0:02:48.8]} 9... Bh5
{[%clk 0:02:58.1]} 10. O-O {[%clk 0:02:48.6]} 10... Be7 {[%clk 0:02:57.1]} 11.
Bf4 {[%clk 0:02:44.3]} 11... O-O {[%clk 0:02:56.7]} 12. g4 {[%clk 0:02:40.7]}
12... Bg6 {[%clk 0:02:54.9]} 13. Bxg6 {[%clk 0:02:39.8]} 13... hxg6 {[%clk
0:02:54.2]} 14. Qc2 {[%clk 0:02:38.9]} 14... Nd5 {[%clk 0:02:49]} 15. Bg3 {[%clk
0:02:34.4]} 15... f5 {[%clk 0:02:45.3]} 16. gxf5 {[%clk 0:02:11.1]} 16... gxf5
{[%clk 0:02:44]} 17. Be5 {[%clk 0:02:07.6]} 17... Bd6 {[%clk 0:02:38.3]} 18. Qe2
{[%clk 0:02:03.6]} 18... Bxe5 {[%clk 0:02:13.2]} 19. Qxe5 {[%clk 0:02:04.5]}
19... Rf6 {[%clk 0:02:11.6]} 20. Kh2 {[%clk 0:02:02.8]} 20... Qb8 {[%clk
0:01:45.2]} 21. Rg1 {[%clk 0:02:01.4]} 21... Qxe5+ {[%clk 0:01:42.8]} 22. Nxe5
{[%clk 0:02:02.3]} 22... Nf4 {[%clk 0:01:40.7]} 23. Rae1 {[%clk 0:01:51.9]}
23... Rh6 {[%clk 0:01:37.1]} 24. Re3 {[%clk 0:01:50.7]} 24... Kh7 {[%clk
0:01:32.2]} 25. Rf3 {[%clk 0:01:50]} 25... Nd5 {[%clk 0:01:26.2]} 26. Rg5 {[%clk
0:01:41.7]} 26... Rf8 {[%clk 0:01:20.5]} 27. Rfg3 {[%clk 0:01:40.6]} 27... Rg8
{[%clk 0:01:14.5]} 28. Rg6 {[%clk 0:01:35]} 28... Nf6 {[%clk 0:01:12.7]} 29.
Rxh6+ {[%clk 0:01:26.2]} 29... gxh6 {[%clk 0:01:12]} 30. Nf7 {[%clk 0:01:17.8]}
30... Ne4 {[%clk 0:01:08.9]} 31. Rxg8 {[%clk 0:01:14.4]} 31... Kxg8 {[%clk
0:01:08.7]} 32. Nxh6+ {[%clk 0:01:14.8]} 32... Kg7 {[%clk 0:01:08.6]} 33. Nxf5+
{[%clk 0:01:08.4]} 33... exf5 {[%clk 0:01:08.5]} 34. Kg2 {[%clk 0:01:09.3]}
34... Nd2 {[%clk 0:01:08.2]} 35. Kg3 {[%clk 0:01:06.7]} 35... Kf6 {[%clk
0:01:06.9]} 36. Kf4 {[%clk 0:01:06.3]} 36... Nc4 {[%clk 0:01:06.1]} 37. h4
{[%clk 0:01:06]} 37... Nxb2 {[%clk 0:01:05.2]} 38. h5 {[%clk 0:01:06.5]} 38...
Nd3+ {[%clk 0:01:04.6]} 39. Ke3 {[%clk 0:01:04.5]} 39... Nc1 {[%clk 0:00:57.6]}
40. a3 {[%clk 0:00:58.8]} 40... Kg5 {[%clk 0:00:56.8]} 41. c4 {[%clk 0:00:51.1]}
41... Kxh5 {[%clk 0:00:55.2]} 42. Kf4 {[%clk 0:00:50.6]} 42... Kg6 {[%clk
0:00:54]} 43. Ke5 {[%clk 0:00:49.8]} 43... Nd3+ {[%clk 0:00:53.5]} 44. Kd6
{[%clk 0:00:46.5]} 44... Nxf2 {[%clk 0:00:53.3]} 45. Kc7 {[%clk 0:00:46.9]}
45... f4 {[%clk 0:00:51.9]} 46. d5 {[%clk 0:00:47.8]} 46... cxd5 {[%clk
0:00:50.8]} 47. cxd5 {[%clk 0:00:48.7]} 47... Ne4 {[%clk 0:00:50.7]} 48. d6
{[%clk 0:00:49.6]} 48... Nxd6 {[%clk 0:00:50.3]} 49. Kxd6 {[%clk 0:00:49.4]}
49... f3 {[%clk 0:00:50.3]} 0-1

[Event "*** Titled Tuesday Blitz"]
[Site "Chess.com"]
[Date "2020.04.14"]
[Round "4"]
[White "Gaguna"]
[Black "Mikhail_Golubev"]
[Result "1-0"]
[WhiteElo "2687"]
[BlackElo "2511"]
[TimeControl "180+1"]
[EndTime "10:39:09 PDT"]
[Termination "Gaguna won by resignation"]

1. d4 {[%clk 0:03:00.9]} 1... Nf6 {[%clk 0:02:59.2]} 2. Nf3 {[%clk 0:03:00]}
2... d6 {[%clk 0:02:58.9]} 3. c4 {[%clk 0:02:58.8]} 3... g6 {[%clk 0:02:58]} 4.
Nc3 {[%clk 0:02:58.2]} 4... Bg7 {[%clk 0:02:58.2]} 5. e4 {[%clk 0:02:56.7]} 5...
O-O {[%clk 0:02:58.6]} 6. Be2 {[%clk 0:02:56.9]} 6... e5 {[%clk 0:02:58.1]} 7.
O-O {[%clk 0:02:57.4]} 7... Nc6 {[%clk 0:02:58.1]} 8. d5 {[%clk 0:02:57.1]} 8...
Ne7 {[%clk 0:02:58.1]} 9. Ne1 {[%clk 0:02:56.2]} 9... Ne8 {[%clk 0:02:57.9]} 10.
f3 {[%clk 0:02:53.9]} 10... f5 {[%clk 0:02:57.9]} 11. Nd3 {[%clk 0:02:53.3]}
11... f4 {[%clk 0:02:48.8]} 12. c5 {[%clk 0:02:52.6]} 12... g5 {[%clk
0:02:47.6]} 13. Bd2 {[%clk 0:02:51.5]} 13... Ng6 {[%clk 0:02:47.4]} 14. Rc1
{[%clk 0:02:50.1]} 14... h5 {[%clk 0:02:42]} 15. cxd6 {[%clk 0:02:46.4]} 15...
cxd6 {[%clk 0:02:39.3]} 16. Kh1 {[%clk 0:02:47.1]} 16... Rf7 {[%clk 0:02:36.7]}
17. Nf2 {[%clk 0:02:44.5]} 17... Bf6 {[%clk 0:02:23.4]} 18. Nb5 {[%clk
0:02:38.1]} 18... Bd7 {[%clk 0:02:19.5]} 19. Qb3 {[%clk 0:02:33.6]} 19... Qb8
{[%clk 0:02:16.4]} 20. Rc2 {[%clk 0:02:29.3]} 20... Bd8 {[%clk 0:02:12.6]} 21.
Rfc1 {[%clk 0:02:27.3]} 21... Rh7 {[%clk 0:01:55.5]} 22. Na3 {[%clk 0:02:22.9]}
22... Bb6 {[%clk 0:01:38.4]} 23. Nh3 {[%clk 0:02:03.3]} 23... g4 {[%clk
0:01:31.6]} 24. Ng5 {[%clk 0:02:02.2]} 24... Qd8 {[%clk 0:01:15.1]} 25. Ne6
{[%clk 0:01:54]} 25... Qh4 {[%clk 0:01:12.1]} 26. Be1 {[%clk 0:01:48.6]} 26...
g3 {[%clk 0:01:09.9]} 27. h3 {[%clk 0:01:48.4]} 27... Nf6 {[%clk 0:00:49.5]} 28.
Bb5 {[%clk 0:01:40.3]} 28... Bxb5 {[%clk 0:00:31.5]} 29. Qxb5 {[%clk 0:01:34.1]}
29... Ne7 {[%clk 0:00:20.1]} 30. Nc4 {[%clk 0:01:28.5]} 30... Be3 {[%clk
0:00:12.5]} 31. Nxe3 {[%clk 0:01:22.2]} 31... fxe3 {[%clk 0:00:12.7]} 32. Rc7
{[%clk 0:01:20.3]} 32... Ng4 {[%clk 0:00:09.8]} 33. Qxb7 {[%clk 0:01:05.5]}
33... Re8 {[%clk 0:00:09.2]} 34. Qb5 {[%clk 0:01:01.4]} 34... Rf8 {[%clk
0:00:05.5]} 35. Nxf8 {[%clk 0:00:57.8]} 35... Nf2+ {[%clk 0:00:05]} 36. Bxf2
{[%clk 0:00:53.8]} 36... gxf2 {[%clk 0:00:04.6]} 37. Nxh7 {[%clk 0:00:51.9]} 1-0

[Event "*** Titled Tuesday Blitz"]
[Site "Chess.com"]
[Date "2020.04.14"]
[Round "4"]
[White "kingmonkey2006"]
[Black "PrinceCharming92"]
[Result "1-0"]
[WhiteElo "2596"]
[BlackElo "2343"]
[TimeControl "180+1"]
[EndTime "10:39:10 PDT"]
[Termination "kingmonkey2006 won by resignation"]

1. e4 {[%clk 0:03:00.9]} 1... c5 {[%clk 0:02:55.9]} 2. Nf3 {[%clk 0:03:01]} 2...
e6 {[%clk 0:02:55.5]} 3. d4 {[%clk 0:03:01.6]} 3... cxd4 {[%clk 0:02:56.4]} 4.
Nxd4 {[%clk 0:03:02.5]} 4... a6 {[%clk 0:02:56.2]} 5. Bd3 {[%clk 0:03:02.9]}
5... Bc5 {[%clk 0:02:56.3]} 6. Nb3 {[%clk 0:03:03]} 6... Ba7 {[%clk 0:02:56.5]}
7. Qg4 {[%clk 0:03:03.4]} 7... Nf6 {[%clk 0:02:56.1]} 8. Qg3 {[%clk 0:03:01.2]}
8... Nc6 {[%clk 0:02:54.2]} 9. O-O {[%clk 0:03:01.5]} 9... g6 {[%clk 0:02:47.1]}
10. Bh6 {[%clk 0:02:57.9]} 10... Nh5 {[%clk 0:02:21.9]} 11. Qg4 {[%clk
0:02:31.8]} 11... Rg8 {[%clk 0:02:11.9]} 12. Nc3 {[%clk 0:02:28.7]} 12... b5
{[%clk 0:02:11.7]} 13. Kh1 {[%clk 0:02:27.4]} 13... Ne5 {[%clk 0:01:54.5]} 14.
Qh3 {[%clk 0:01:54.4]} 14... Bb7 {[%clk 0:01:54.1]} 15. f4 {[%clk 0:01:52]}
15... Nxd3 {[%clk 0:01:45.8]} 16. cxd3 {[%clk 0:01:52.9]} 16... Qe7 {[%clk
0:01:38]} 17. e5 {[%clk 0:01:44.8]} 17... f6 {[%clk 0:01:30.1]} 18. Ne4 {[%clk
0:01:42.7]} 18... Bxe4 {[%clk 0:01:23.1]} 19. dxe4 {[%clk 0:01:43.3]} 19... Rc8
{[%clk 0:01:00.5]} 20. Rad1 {[%clk 0:01:24.8]} 20... Kf7 {[%clk 0:00:54.8]} 21.
exf6 {[%clk 0:01:18.5]} 21... Nxf6 {[%clk 0:00:53.9]} 22. Bg5 {[%clk 0:01:16.8]}
22... Qe8 {[%clk 0:00:31.7]} 23. f5 {[%clk 0:01:03]} 23... gxf5 {[%clk
0:00:27.2]} 24. Bxf6 {[%clk 0:01:03.3]} 24... Kxf6 {[%clk 0:00:21.9]} 25. exf5
{[%clk 0:01:03.6]} 25... e5 {[%clk 0:00:20.3]} 26. Qxh7 {[%clk 0:00:46.6]} 26...
Rg7 {[%clk 0:00:18.4]} 27. Qh6+ {[%clk 0:00:43.4]} 27... Kf7 {[%clk 0:00:18.7]}
28. f6 {[%clk 0:00:39.8]} 28... Rg6 {[%clk 0:00:17.8]} 29. Qh7+ {[%clk
0:00:39.8]} 29... Kf8 {[%clk 0:00:11.6]} 30. f7 {[%clk 0:00:36.6]} 30... Qe6
{[%clk 0:00:11.9]} 31. Qh8+ {[%clk 0:00:36.9]} 31... Ke7 {[%clk 0:00:12.3]} 32.
f8=Q+ {[%clk 0:00:37.1]} 1-0

[Event "*** Titled Tuesday Blitz"]
[Site "Chess.com"]
[Date "2020.04.14"]
[Round "4"]
[White "GMJustin"]
[Black "HouseOfDurin"]
[Result "1-0"]
[WhiteElo "2418"]
[BlackElo "2062"]
[TimeControl "180+1"]
[EndTime "10:39:10 PDT"]
[Termination "GMJustin won by checkmate"]

1. e4 {[%clk 0:02:55.1]} 1... c5 {[%clk 0:03:00.1]} 2. Nf3 {[%clk 0:02:54.7]}
2... Nc6 {[%clk 0:03:00]} 3. d4 {[%clk 0:02:53.2]} 3... cxd4 {[%clk 0:03:00.9]}
4. Nxd4 {[%clk 0:02:53.2]} 4... e5 {[%clk 0:03:01.4]} 5. Nb5 {[%clk 0:02:52.1]}
5... d6 {[%clk 0:03:01.7]} 6. c4 {[%clk 0:02:43.3]} 6... Be6 {[%clk 0:03:00.9]}
7. b3 {[%clk 0:02:38.6]} 7... a6 {[%clk 0:02:50.6]} 8. N5c3 {[%clk 0:02:37.9]}
8... Nf6 {[%clk 0:02:50.7]} 9. Bd3 {[%clk 0:02:32.2]} 9... Be7 {[%clk
0:02:46.5]} 10. O-O {[%clk 0:02:28.8]} 10... O-O {[%clk 0:02:46.1]} 11. Nd5
{[%clk 0:02:20.9]} 11... Nd4 {[%clk 0:02:34.8]} 12. Nbc3 {[%clk 0:02:08.7]}
12... Bxd5 {[%clk 0:02:26.1]} 13. cxd5 {[%clk 0:02:03.7]} 13... Rc8 {[%clk
0:02:16.6]} 14. Ne2 {[%clk 0:01:56.4]} 14... Nxe2+ {[%clk 0:02:05.7]} 15. Qxe2
{[%clk 0:01:55.8]} 15... Nd7 {[%clk 0:01:41.7]} 16. b4 {[%clk 0:01:45.5]} 16...
Qb6 {[%clk 0:01:03.8]} 17. Be3 {[%clk 0:01:24.1]} 17... Qxb4 {[%clk 0:00:59.6]}
18. Rab1 {[%clk 0:01:18.5]} 18... Qa5 {[%clk 0:00:32.9]} 19. Rxb7 {[%clk
0:01:16.7]} 19... Rc7 {[%clk 0:00:25.4]} 20. Bd2 {[%clk 0:00:55.2]} 20... Qc5
{[%clk 0:00:20]} 21. Bb4 {[%clk 0:00:45]} 21... Qc1 {[%clk 0:00:15.7]} 22. Rxc1
{[%clk 0:00:35.5]} 22... Rxc1+ {[%clk 0:00:16.6]} 23. Be1 {[%clk 0:00:35.5]}
23... Bd8 {[%clk 0:00:16.6]} 24. Qd2 {[%clk 0:00:23.1]} 24... Ra1 {[%clk
0:00:14.6]} 25. Rxd7 {[%clk 0:00:22.3]} 25... Bb6 {[%clk 0:00:13.1]} 26. g3
{[%clk 0:00:21.4]} 26... Bd4 {[%clk 0:00:12.7]} 27. Kg2 {[%clk 0:00:21]} 27...
Rb8 {[%clk 0:00:12.3]} 28. Qe2 {[%clk 0:00:18.5]} 28... Rb2 {[%clk 0:00:11.1]}
29. Rd8# {[%clk 0:00:18.1]} 1-0

[Event "*** Titled Tuesday Blitz"]
[Site "Chess.com"]
[Date "2020.04.14"]
[Round "4"]
[White "GM_RobertoMogranzini"]
[Black "sganerdene"]
[Result "0-1"]
[WhiteElo "2507"]
[BlackElo "2684"]
[TimeControl "180+1"]
[EndTime "10:39:13 PDT"]
[Termination "sganerdene won by resignation"]

1. e4 {[%clk 0:03:00.9]} 1... c5 {[%clk 0:03:00]} 2. Nf3 {[%clk 0:03:00.8]} 2...
e6 {[%clk 0:03:00.4]} 3. Nc3 {[%clk 0:03:01.7]} 3... Nc6 {[%clk 0:03:00.1]} 4.
g3 {[%clk 0:03:02]} 4... Nf6 {[%clk 0:02:59.7]} 5. Bg2 {[%clk 0:03:02.2]} 5...
d6 {[%clk 0:03:00.2]} 6. O-O {[%clk 0:03:02.2]} 6... Be7 {[%clk 0:03:00.7]} 7.
d4 {[%clk 0:03:00.2]} 7... cxd4 {[%clk 0:03:00.9]} 8. Nxd4 {[%clk 0:03:01.1]}
8... O-O {[%clk 0:03:00.6]} 9. Nb3 {[%clk 0:02:58]} 9... a6 {[%clk 0:02:59.8]}
10. a4 {[%clk 0:02:57.7]} 10... Qc7 {[%clk 0:02:58.1]} 11. g4 {[%clk 0:02:56.6]}
11... b6 {[%clk 0:02:46.1]} 12. g5 {[%clk 0:02:55.9]} 12... Nd7 {[%clk 0:02:46]}
13. f4 {[%clk 0:02:55.8]} 13... Bb7 {[%clk 0:02:46.3]} 14. f5 {[%clk 0:02:48.4]}
14... Kh8 {[%clk 0:02:29.5]} 15. Kh1 {[%clk 0:02:29]} 15... Rae8 {[%clk
0:02:20.3]} 16. Qh5 {[%clk 0:02:25.2]} 16... Nce5 {[%clk 0:01:54.2]} 17. Nd4
{[%clk 0:02:16.4]} 17... exf5 {[%clk 0:01:54.2]} 18. exf5 {[%clk 0:02:01.5]}
18... Bxg2+ {[%clk 0:01:53.8]} 19. Kxg2 {[%clk 0:02:02.4]} 19... Qc4 {[%clk
0:01:49.9]} 20. Rf4 {[%clk 0:01:46.2]} 20... Bd8 {[%clk 0:01:21.9]} 21. Rh4
{[%clk 0:01:25.7]} 21... h6 {[%clk 0:01:21.7]} 22. f6 {[%clk 0:00:49.1]} 22...
Bxf6 {[%clk 0:01:20.7]} 23. gxf6 {[%clk 0:00:47.2]} 23... Nxf6 {[%clk 0:01:21]}
24. Qf5 {[%clk 0:00:42.4]} 24... Ng6 {[%clk 0:01:11.4]} 25. Rxh6+ {[%clk
0:00:35.7]} 25... gxh6 {[%clk 0:01:08.6]} 26. Qxf6+ {[%clk 0:00:35.7]} 26... Kh7
{[%clk 0:01:09]} 27. Bxh6 {[%clk 0:00:29.3]} 27... Rg8 {[%clk 0:01:03.2]} 28.
Kh1 {[%clk 0:00:25.5]} 28... Kxh6 {[%clk 0:00:42.4]} 29. Rg1 {[%clk 0:00:21.4]}
29... Re5 {[%clk 0:00:37.3]} 30. Nf5+ {[%clk 0:00:19.8]} 30... Kh7 {[%clk
0:00:29.9]} 31. Qg5 {[%clk 0:00:18.1]} 31... Qc6+ {[%clk 0:00:26]} 32. Qg2
{[%clk 0:00:15.1]} 32... Qxg2+ {[%clk 0:00:25.1]} 33. Kxg2 {[%clk 0:00:15.3]}
33... Rxf5 {[%clk 0:00:25.5]} 0-1

[Event "*** Titled Tuesday Blitz"]
[Site "Chess.com"]
[Date "2020.04.14"]
[Round "4"]
[White "grzechu96"]
[Black "vladislavkovalev"]
[Result "0-1"]
[WhiteElo "2586"]
[BlackElo "2879"]
[TimeControl "180+1"]
[EndTime "10:39:14 PDT"]
[Termination "vladislavkovalev won by resignation"]

1. e4 {[%clk 0:03:00.9]} 1... e5 {[%clk 0:02:58.5]} 2. Nf3 {[%clk 0:03:01]} 2...
Nc6 {[%clk 0:02:58.9]} 3. Bc4 {[%clk 0:03:00.7]} 3... Nf6 {[%clk 0:02:58.3]} 4.
d3 {[%clk 0:03:00.9]} 4... Bc5 {[%clk 0:02:58.9]} 5. O-O {[%clk 0:03:00.6]} 5...
a6 {[%clk 0:02:59.2]} 6. c3 {[%clk 0:03:00.5]} 6... d6 {[%clk 0:02:59.7]} 7. Re1
{[%clk 0:02:58.2]} 7... h6 {[%clk 0:02:59.8]} 8. Bb3 {[%clk 0:02:58.2]} 8... Ba7
{[%clk 0:03:00.3]} 9. Nbd2 {[%clk 0:02:58.3]} 9... Ne7 {[%clk 0:02:52.9]} 10.
Nf1 {[%clk 0:02:56]} 10... Ng6 {[%clk 0:02:52.6]} 11. h3 {[%clk 0:02:38.5]}
11... O-O {[%clk 0:02:51.2]} 12. Ng3 {[%clk 0:02:17.7]} 12... Be6 {[%clk
0:02:51.6]} 13. Bc2 {[%clk 0:02:14.1]} 13... Qd7 {[%clk 0:02:48.6]} 14. d4
{[%clk 0:02:13.3]} 14... c6 {[%clk 0:02:38.2]} 15. Be3 {[%clk 0:02:08.1]} 15...
Rfe8 {[%clk 0:02:30.3]} 16. Qd2 {[%clk 0:01:52.8]} 16... Kh7 {[%clk 0:02:03.2]}
17. Rad1 {[%clk 0:01:33.2]} 17... Bb8 {[%clk 0:01:37.8]} 18. Qc1 {[%clk
0:01:21.7]} 18... Qc8 {[%clk 0:01:20]} 19. Bb1 {[%clk 0:00:39.6]} 19... Bc7
{[%clk 0:01:16.3]} 20. Nf5 {[%clk 0:00:35.6]} 20... Bxf5 {[%clk 0:01:11.4]} 21.
exf5 {[%clk 0:00:35.4]} 21... Ne7 {[%clk 0:01:12.1]} 22. dxe5 {[%clk 0:00:25.1]}
22... dxe5 {[%clk 0:01:13]} 23. g4 {[%clk 0:00:23.3]} 23... Ned5 {[%clk
0:01:12]} 24. c4 {[%clk 0:00:13.6]} 24... Nxe3 {[%clk 0:01:09.5]} 25. Qxe3
{[%clk 0:00:14.3]} 25... e4 {[%clk 0:01:10.2]} 26. Nh4 {[%clk 0:00:13.2]} 26...
Be5 {[%clk 0:01:00.7]} 27. b3 {[%clk 0:00:11.8]} 27... Qc7 {[%clk 0:01:00.8]}
28. Ng2 {[%clk 0:00:11.4]} 28... Rad8 {[%clk 0:00:59.4]} 29. Rxd8 {[%clk
0:00:10.9]} 29... Qxd8 {[%clk 0:01:00.3]} 30. Kf1 {[%clk 0:00:08.9]} 30... Bd4
{[%clk 0:01:00.2]} 31. Qf4 {[%clk 0:00:07.6]} 31... Qa5 {[%clk 0:00:57.7]} 32.
h4 {[%clk 0:00:06.6]} 32... Be5 {[%clk 0:00:54.9]} 33. Qe3 {[%clk 0:00:06.5]}
33... Nxg4 {[%clk 0:00:53.3]} 34. Qxe4 {[%clk 0:00:06.7]} 34... Nf6 {[%clk
0:00:46.9]} 35. Qf3 {[%clk 0:00:07.1]} 35... Rd8 {[%clk 0:00:42.6]} 36. Rxe5
{[%clk 0:00:06.4]} 36... Qxe5 {[%clk 0:00:43.5]} 0-1

[Event "*** Titled Tuesday Blitz"]
[Site "Chess.com"]
[Date "2020.04.14"]
[Round "4"]
[White "WeAintSurePal"]
[Black "Fighter008"]
[Result "0-1"]
[WhiteElo "2325"]
[BlackElo "2518"]
[TimeControl "180+1"]
[EndTime "10:39:14 PDT"]
[Termination "Fighter008 won by resignation"]

1. d4 {[%clk 0:03:00.9]} 1... c5 {[%clk 0:02:58.8]} 2. dxc5 {[%clk 0:02:59.9]}
2... Nf6 {[%clk 0:02:57.9]} 3. Nf3 {[%clk 0:02:55.7]} 3... e6 {[%clk 0:02:57.4]}
4. c4 {[%clk 0:02:53.1]} 4... Bxc5 {[%clk 0:02:56.4]} 5. Nc3 {[%clk 0:02:53.7]}
5... O-O {[%clk 0:02:54.3]} 6. g3 {[%clk 0:02:51.1]} 6... b6 {[%clk 0:02:45.8]}
7. Bg2 {[%clk 0:02:50.8]} 7... Bb7 {[%clk 0:02:46]} 8. O-O {[%clk 0:02:51.4]}
8... Be7 {[%clk 0:02:43.6]} 9. Re1 {[%clk 0:02:50]} 9... d6 {[%clk 0:02:43.6]}
10. e4 {[%clk 0:02:47.8]} 10... Nbd7 {[%clk 0:02:44.1]} 11. h3 {[%clk
0:02:44.8]} 11... a6 {[%clk 0:02:44.2]} 12. b3 {[%clk 0:02:44.7]} 12... Rc8
{[%clk 0:02:43.8]} 13. Ba3 {[%clk 0:02:40.5]} 13... Nc5 {[%clk 0:02:43.1]} 14.
Qc2 {[%clk 0:02:35.2]} 14... b5 {[%clk 0:02:41.8]} 15. Rad1 {[%clk 0:02:30.4]}
15... bxc4 {[%clk 0:02:37.2]} 16. bxc4 {[%clk 0:02:27.1]} 16... Qa5 {[%clk
0:02:36.6]} 17. Bb2 {[%clk 0:02:21.6]} 17... Ncd7 {[%clk 0:02:33.4]} 18. Qd3
{[%clk 0:02:11.7]} 18... Nb6 {[%clk 0:02:27.2]} 19. Nd2 {[%clk 0:02:08.7]} 19...
Nfd7 {[%clk 0:02:20.6]} 20. Qe2 {[%clk 0:01:51.7]} 20... Ne5 {[%clk 0:02:10.6]}
21. c5 {[%clk 0:01:04.4]} 21... dxc5 {[%clk 0:02:01.7]} 22. a3 {[%clk
0:00:51.3]} 22... Nbd7 {[%clk 0:01:58.1]} 23. Nc4 {[%clk 0:00:44]} 23... Nxc4
{[%clk 0:01:56.7]} 24. Rxd7 {[%clk 0:00:43.3]} 24... Nxb2 {[%clk 0:01:52.9]} 25.
Qxb2 {[%clk 0:00:38.3]} 25... Rc7 {[%clk 0:01:51.1]} 26. Rxc7 {[%clk 0:00:32]}
26... Qxc7 {[%clk 0:01:50.4]} 27. Rb1 {[%clk 0:00:29.1]} 27... Bc6 {[%clk
0:01:49.3]} 28. Qb6 {[%clk 0:00:25.9]} 28... Qc8 {[%clk 0:01:46.7]} 29. e5
{[%clk 0:00:20.6]} 29... Bxg2 {[%clk 0:01:46.1]} 30. Kxg2 {[%clk 0:00:21.5]}
30... c4 {[%clk 0:01:40.8]} 31. Ne4 {[%clk 0:00:21.4]} 31... Bxa3 {[%clk
0:01:39.5]} 32. Nd6 {[%clk 0:00:20.8]} 32... Qa8+ {[%clk 0:01:37.2]} 33. Kh2
{[%clk 0:00:20]} 33... c3 {[%clk 0:01:37]} 34. Qc7 {[%clk 0:00:18.9]} 34... Bb2
{[%clk 0:01:21.8]} 35. Re1 {[%clk 0:00:15.2]} 35... Qf3 {[%clk 0:01:19.4]} 36.
Kg1 {[%clk 0:00:15.3]} 36... h5 {[%clk 0:01:17.2]} 37. Qe7 {[%clk 0:00:14.1]}
37... c2 {[%clk 0:01:11]} 38. Qg5 {[%clk 0:00:14.6]} 38... Qd1 {[%clk 0:01:06]}
39. Qe3 {[%clk 0:00:06.9]} 39... Qxe1+ {[%clk 0:01:04.1]} 40. Qxe1 {[%clk
0:00:06.6]} 40... c1=Q {[%clk 0:01:03.9]} 0-1

[Event "*** Titled Tuesday Blitz"]
[Site "Chess.com"]
[Date "2020.04.14"]
[Round "4"]
[White "ChessicallyInclined"]
[Black "Sviridov_Valery"]
[Result "0-1"]
[WhiteElo "2587"]
[BlackElo "2828"]
[TimeControl "180+1"]
[EndTime "10:39:15 PDT"]
[Termination "Sviridov_Valery won by resignation"]

1. d4 {[%clk 0:03:00.9]} 1... g6 {[%clk 0:02:59.1]} 2. c4 {[%clk 0:03:00]} 2...
Bg7 {[%clk 0:02:59.1]} 3. e4 {[%clk 0:03:00.4]} 3... d6 {[%clk 0:02:59.3]} 4.
Nc3 {[%clk 0:03:00.2]} 4... e5 {[%clk 0:02:59.7]} 5. dxe5 {[%clk 0:02:42.4]}
5... dxe5 {[%clk 0:03:00.6]} 6. Qxd8+ {[%clk 0:02:41.4]} 6... Kxd8 {[%clk
0:03:01.5]} 7. Be3 {[%clk 0:02:40.5]} 7... Be6 {[%clk 0:03:00.4]} 8. O-O-O+
{[%clk 0:02:20.1]} 8... Nd7 {[%clk 0:02:59.9]} 9. h4 {[%clk 0:02:12.4]} 9... Bh6
{[%clk 0:02:55.5]} 10. Bxh6 {[%clk 0:02:08.6]} 10... Nxh6 {[%clk 0:02:56.4]} 11.
Be2 {[%clk 0:01:58.5]} 11... c6 {[%clk 0:02:51.3]} 12. h5 {[%clk 0:01:57.4]}
12... g5 {[%clk 0:02:51.1]} 13. Nf3 {[%clk 0:01:53.3]} 13... f6 {[%clk
0:02:49.7]} 14. Ne1 {[%clk 0:01:43.3]} 14... Kc7 {[%clk 0:02:48.6]} 15. b3
{[%clk 0:01:43.3]} 15... a5 {[%clk 0:02:47.5]} 16. Nd3 {[%clk 0:01:42]} 16...
Rhd8 {[%clk 0:02:38.9]} 17. Kb2 {[%clk 0:01:39]} 17... Nf7 {[%clk 0:02:38]} 18.
g3 {[%clk 0:01:35.5]} 18... g4 {[%clk 0:02:32.2]} 19. Rc1 {[%clk 0:01:07.2]}
19... Ng5 {[%clk 0:02:19.2]} 20. Nd5+ {[%clk 0:01:03.7]} 20... Kb8 {[%clk
0:02:18.1]} 21. Ne3 {[%clk 0:01:03.6]} 21... Nxe4 {[%clk 0:02:15.1]} 22. Bxg4
{[%clk 0:01:01.1]} 22... Bxg4 {[%clk 0:02:14.9]} 23. Nxg4 {[%clk 0:01:02]} 23...
Kc7 {[%clk 0:02:14.3]} 24. Rhe1 {[%clk 0:01:01]} 24... Ndc5 {[%clk 0:02:11]} 25.
Nxc5 {[%clk 0:01:00.2]} 25... Nxc5 {[%clk 0:02:11.9]} 26. Nxf6 {[%clk
0:00:53.8]} 26... Nd3+ {[%clk 0:02:11.6]} 27. Kc3 {[%clk 0:00:54]} 27... Nxc1
{[%clk 0:02:12.5]} 28. Rxc1 {[%clk 0:00:54.1]} 28... Rf8 {[%clk 0:02:08.4]} 29.
Ne4 {[%clk 0:00:53.9]} 29... Rf5 {[%clk 0:02:09]} 30. Rh1 {[%clk 0:00:47.8]}
30... Rd8 {[%clk 0:02:08]} 31. Rh4 {[%clk 0:00:42.8]} 31... Rd4 {[%clk
0:02:05.9]} 32. Rg4 {[%clk 0:00:42.6]} 32... Kb6 {[%clk 0:02:00.1]} 33. c5+
{[%clk 0:00:37.3]} 33... Ka6 {[%clk 0:01:59.9]} 34. a4 {[%clk 0:00:30.2]} 34...
Rxh5 {[%clk 0:01:46.6]} 35. Rg8 {[%clk 0:00:28.6]} 35... Ka7 {[%clk 0:01:46.6]}
36. Nd6 {[%clk 0:00:26.2]} 36... Rd5 {[%clk 0:01:45.1]} 37. Kc4 {[%clk
0:00:17.7]} 37... e4 {[%clk 0:01:39.6]} 38. Nxe4 {[%clk 0:00:16]} 38... Rh1
{[%clk 0:01:40.1]} 39. Kc3 {[%clk 0:00:11.1]} 39... Rc1+ {[%clk 0:01:37.9]} 40.
Kb2 {[%clk 0:00:11.5]} 40... Re1 {[%clk 0:01:38.4]} 41. Rg4 {[%clk 0:00:11.4]}
41... Rd4 {[%clk 0:01:27.2]} 42. f3 {[%clk 0:00:08.8]} 42... Re3 {[%clk
0:01:27.6]} 43. Rf4 {[%clk 0:00:08.7]} 43... Rdd3 {[%clk 0:01:27.3]} 44. Rf7
{[%clk 0:00:06.5]} 44... Rxb3+ {[%clk 0:01:27]} 45. Kc2 {[%clk 0:00:07]} 45...
Rxf3 {[%clk 0:01:27.4]} 46. Rxh7 {[%clk 0:00:06.5]} 46... Rbe3 {[%clk
0:01:25.6]} 47. Nd6 {[%clk 0:00:05.5]} 47... Rc3+ {[%clk 0:01:23.3]} 48. Kd2
{[%clk 0:00:05.6]} 48... Rxc5 {[%clk 0:01:22.8]} 49. Rxb7+ {[%clk 0:00:04.3]}
49... Ka6 {[%clk 0:01:23.1]} 50. Rd7 {[%clk 0:00:04.2]} 50... Rd5+ {[%clk
0:01:23.3]} 51. Ke2 {[%clk 0:00:04.6]} 51... Rfd3 {[%clk 0:01:23.9]} 0-1